Cogmind - Beta 13 @@@ ROGUE MODE // 2024.04.05 @ 09:43:02 Player: AbsoluteZero Result: Self-destructed Performance ------------- Evolutions (2) 1000 Regions Visited (5) 1000 Robots Destroyed (48) 240 Value Destroyed (1723) 1723 Prototype IDs (1) 20 Alien Tech Used (0) 0 Bonus (493) 493 TOTAL SCORE: 4476 Bonus ------- High Alert Combat Kills 210 Follower Combat Kills 83 Entered Garrisons 200 Cogmind --------- Core Integrity 372/550 Matter 300/300 Energy 100/100 System Corruption 12% Temperature Cool (0) Movement Core (350) Ox6 Location -8/Garrison Parts ------- > --- POWER (1) -------- (None) > --- PROPULSION (3) --- (None) > --- UTILITY (5) ------ Improved Heat Sink Large Storage Unit Advanced Visual Processing Unit > --- WEAPON (2) ------- (None) > --- INVENTORY (15) --- Light Nuclear Core Wheel Heat Sink Cooling System High-capacity Matter Pod (200) Seismic Detector Particle Gun Heavy Laser Heavy Assault Rifle Heavy Assault Rifle Grenade Launcher Peak State ------------ > --- POWER ------------ Improved Ion Engine > --- PROPULSION ------- Improved Treads Improved Treads Improved Treads > --- UTILITY ---------- Improved Heat Sink Large Storage Unit Advanced Visual Processing Unit Seismic Detector Shield Generator > --- WEAPON ----------- Heavy Assault Rifle Enhanced Autogun > --- INVENTORY -------- Ion Engine Light Treads Light Treads Improved Treads Wheel Heat Sink Cooling System High-capacity Matter Pod Light Armor Plating Hardened Medium Armor Plating Autogun Autogun Grenade Launcher Maul [Rating: 26] Favorites ----------- Power Ion Engine Engine Ion Engine Propulsion Improved Treads Treads Improved Treads Leg Aluminum Leg Utility Seismic Detector Device Seismic Detector Storage Large Storage Unit Processor Advanced Visual Processing Unit Protection Hardened Medium Armor Plating Weapon Light Assault Rifle Energy Gun Particle Gun Ballistic Gun Light Assault Rifle Launcher Grenade Launcher Impact Weapon Maul Build | -11 -10 -10 -9 -8 -8 ------- Run | Yrd Mat Min Mat Mat Gar Slots Evolved 4 | . . . 2 2 . Power . | . . . . . . Propulsion 1 | . . . . 1 . Utility 3 | . . . 2 1 . Weapon . | . . . . . . Parts Attached 66 | 7 5 3 10 5 36 Power 4 | 1 1 . 1 . 1 Engine 4 | 1 1 . 1 . 1 Core . | . . . . . . Reactor . | . . . . . . Propulsion 9 | 2 2 . . 1 4 Treads 7 | . 2 . . 1 4 Leg 2 | 2 . . . . . Wheel . | . . . . . . Hover . | . . . . . . Flight . | . . . . . . Utility 19 | 2 . . 4 2 11 Device 9 | 1 . . 3 . 5 Storage 2 | 1 . . 1 . . Processor 1 | . . . . 1 . Hackware . | . . . . . . Protection 7 | . . . . 1 6 Artifact . | . . . . . . Weapon 34 | 2 2 3 5 2 20 Energy Gun 10 | 1 1 . 3 1 4 Energy Cannon . | . . . . . . Ballistic Gun 11 | 1 . 2 1 1 6 Ballistic Cannon . | . . . . . . Launcher 3 | . 1 1 . . 1 Special Weapon . | . . . . . . Impact Weapon 10 | . . . 1 . 9 Slashing Weapon . | . . . . . . Piercing Weapon . | . . . . . . Special Melee Weapon . | . . . . . . Unidentified Prototypes 1 | . . . . 1 . Parts Lost 19 | . 1 2 . . 16 Power 3 | . 1 . . . 2 Propulsion 6 | . . . . . 6 Utility 5 | . . . . . 5 Weapon 5 | . . 2 . . 3 Highest Loss Streak 9 | . 1 1 . . 9 To Critical Strikes . | . . . . . . Average Slot Usage (%) 99 | . 100 100 100 99 99 Engine 11 | . 14 14 11 9 8 Treads 24 | . 21 28 22 27 26 Leg 1 | . 6 . . . . Device 18 | . 14 14 33 27 12 Storage 11 | . 14 14 11 9 9 Processor 3 | . . . . 8 9 Protection 5 | . . . . . 14 Energy Gun 6 | . 14 . 10 8 3 Ballistic Gun 13 | . 14 27 11 9 10 Impact Weapon 1 | . . . . . 4 Naked Turns . | . . . . . . Heaviest Build 45 | 12 15 13 37 40 45 Greatest Support 69 | 20 46 46 46 69 69 Greatest Overweight (x) 2 | 2 . . . . . Average Overweight (x) . | . . . . . . Largest Inventory Capacity 15 | 8 8 8 15 15 15 Average Capacity 12 | 7 8 8 13 15 15 Most Carried 15 | 4 8 8 13 14 15 Average Carried 10 | 2 6 7 9 12 12 Final Capacity 15 | 8 8 8 15 15 15 Final Carried 14 | 4 8 8 13 14 11 Class Distribution -------------------- 55% | Mutant 44% | Scavenger-Mutant Dominant Class ---------------- Mutant | -10/Materials Mutant | -10/Mines Scavenger-Mutant | -9/Materials Scavenger-Mutant | -8/Materials Scavenger-Mutant | -8/Garrison Resources | -11 -10 -10 -9 -8 -8 ----------- Run | Yrd Mat Min Mat Mat Gar Matter Collected 1468 | 182 182 253 183 . 668 Remotely . | . . . . . . Salvage Created 1747 | 25 264 84 519 . 855 Parts 94 | 7 11 5 26 . 45 Haulers Intercepted . | . . . . . . Recyclers Shooed . | . . . . . . Parts Field Recycled . | . . . . . . Retrieved Matter . | . . . . . . Parts Self-Destructed . | . . . . . . Prevented . | . . . . . . Kills | -11 -10 -10 -9 -8 -8 ------- Run | Yrd Mat Min Mat Mat Gar Combat Hostiles Destroyed 45 | . 6 2 13 . 24 Melee 2 | . . . . . 2 Guns 36 | . 4 1 13 . 18 Cannons 1 | . . . . . 1 AOE 5 | . 2 1 . . 2 Classes Destroyed 7 | 1 2 . 2 . 2 Tunneler 2 | 2 . . . . . Recycler 1 | . 1 . . . . Swarmer 9 | . . . 2 . 7 Grunt 28 | . 6 2 8 . 12 Sentry 5 | . . . 3 . 2 Hunter 1 | . . . . . 1 Programmer 1 | . . . . . 1 Thug 1 | . . . . . 1 Best Kill Streak 7 | 2 3 2 4 . 7 Combat Bots Only 7 | . 2 2 4 . 7 Max Kills in Single Turn 2 | 1 1 1 1 . 2 Gunslinging 1 | . . . . . 1 Exploded 2 | . 1 1 . . 2 Melee 1 | . . . . . 1 Uniques/NPCs Destroyed . | . . . . . . Combat | -11 -10 -10 -9 -8 -8 -------- Run | Yrd Mat Min Mat Mat Gar Hostile Shots Fired 286 | . 29 13 67 . 177 Missed 84 | . 7 3 30 . 44 Damage Taken 2659 | . 316 180 357 . 1806 Core 362 | . 84 27 73 . 178 Absorbed by Shields 187 | . . . 134 . 53 Core Remaining (%) 78 | 100 . 55 81 . . Volleys Fired 127 | 3 20 8 41 . 55 Largest 2 | 2 2 2 2 . 2 Hottest 92 | 70 70 70 88 . 92 Shots Fired 246 | 6 38 15 81 . 106 Gun 240 | 6 35 14 81 . 104 Cannon . | . . . . . . Launcher 6 | . 3 1 . . 2 Special . | . . . . . . Kinetic 140 | 3 17 13 41 . 66 Thermal 100 | 3 18 1 40 . 38 Explosive 6 | . 3 1 . . 2 Electromagnetic . | . . . . . . Robot Hit Streak 15 | 3 9 9 15 . 8 Robot Miss Streak 5 | 1 4 1 3 . 5 Penetration Max . | . . . . . . Secondary Targets 6 | . . . 1 . 5 Max Gunslinging Chain 1 | . . . 1 . 1 Shots Hit Robots 176 | 4 25 13 59 . 75 Core Hits 92 | 3 16 5 25 . 43 Critical Kills . | . . . . . . Critical Parts Destroyed 2 | . . . . . 2 Critical Strikes 10 | . 5 . 1 . 4 Burn 8 | . 5 . 1 . 2 Smash 2 | . . . . . 2 Melee Attacks 40 | . . . 1 . 39 Impact 40 | . . . 1 . 39 Slashing . | . . . . . . Piercing . | . . . . . . Sneak Attacks . | . . . . . . Combat Hostiles . | . . . . . . Follow-up Attacks . | . . . . . . Damage Inflicted 3210 | 42 548 177 832 . 1611 Guns 2249 | 42 272 96 832 . 1007 Cannons . | . . . . . . Explosions 522 | . 276 81 . . 165 Melee 439 | . . . . . 439 Ramming . | . . . . . . Kinetic 1184 | 16 92 84 368 . 624 Thermal 1065 | 26 180 12 464 . 383 Explosive 522 | . 276 81 . . 165 Electromagnetic . | . . . . . . Impact 439 | . . . . . 439 Slashing . | . . . . . . Piercing . | . . . . . . Highest Corruption 12 | . 1 1 1 3 12 Average Corruption 2 | . 1 1 1 3 3 Corruption Purged . | . . . . . . Corruption Blocked . | . . . . . . Effects 38 | . 5 4 . 1 28 Message Errors 14 | . 1 2 . . 11 Matter Fused 8 | . 1 . . . 7 Heat Flow Errors 3 | . 1 1 . . 1 Energy Discharges 5 | . . 1 . 1 3 Parts Rejected 1 | . . . . . 1 Data Loss (minor) 2 | . . . . . 2 Data Loss (major) 1 | . . . . . 1 Misfires 1 | . 1 . . . . Alerts 2 | . 1 . . . 1 Weapon Failures 1 | . . . . . 1 Overload Shots . | . . . . . . Overflow Damage 111 | . 10 . . . 101 Projectiles . | . . . . . . Explosions 10 | . 10 . . . . Melee 101 | . . . . . 101 Knockbacks 2 | . . . . . 2 Impact 2 | . . . . . 2 Kinetic . | . . . . . . Secondary . | . . . . . . Self-Inflicted Damage 40 | . 9 31 . . . Shots 2 | . 1 1 . . . Rammed 1 | . 1 . . . . Targets Rammed 2 | . 2 . . . . Kicked 1 | . 1 . . . . Crushed . | . . . . . . Highest Temperature 265 | 30 260 265 16 . 240 Average Temperature 65 | 18 109 71 6 . 40 Received Heat Transfer 910 | . 159 87 159 . 505 Siege Activations . | . . . . . . Robots Corrupted . | . . . . . . Combat Hostiles . | . . . . . . Parts Fried 3 | . . . . . 3 Impact Corruptions 6 | . . . . . 6 Robots Melted . | . . . . . . Combat Hostiles . | . . . . . . Parts Melted 11 | . 4 . 3 . 4 Heat Transferred 3033 | 74 888 37 1150 . 884 Parts Sabotaged . | . . . . . . Parts Stolen . | . . . . . . Parts Stripped . | . . . . . . Power Chain Reactions . | . . . . . . Alert | -11 -10 -10 -9 -8 -8 ------- Run | Yrd Mat Min Mat Mat Gar Peak Influence 969 | 10 186 74 216 27 969 Initial 27 | . 6 25 16 27 17 Average 241 | 2 79 66 136 27 482 Maximum Alert Level 3 | . . . 1 . 3 Low Security (%) 63 | 100 100 100 75 100 20 Level 1 15 | . . . 24 . 25 Level 2 10 | . . . . . 27 Level 3 10 | . . . . . 26 Level 4 . | . . . . . . Level 5 . | . . . . . . High Security . | . . . . . . Max Security . | . . . . . . Squads Dispatched 6 | . 1 1 4 . . Investigation 3 | . 1 . 2 . . Extermination . | . . . . . . Reinforcement 2 | . . . 2 . . Assault 1 | . . 1 . . . Garrison . | . . . . . . Intercept . | . . . . . . Searches Triggered . | . . . . . . Construction Impeded . | . . . . . . Haulers Reinforced . | . . . . . . Active Scanning Responses . | . . . . . . Cargo Convoy Interrupts . | . . . . . . Stealth | -11 -10 -10 -9 -8 -8 --------- Run | Yrd Mat Min Mat Mat Gar Distress Signals 2 | . 1 . 1 . . Communications Jammed . | . . . . . . Distress Signals . | . . . . . . Times Spotted 73 | . 13 7 18 . 35 Peak Tracking Total 8 | . 3 4 5 . 8 Tactical Retreats 8 | . . 1 2 . 5 Traps | -11 -10 -10 -9 -8 -8 ------- Run | Yrd Mat Min Mat Mat Gar Traps Triggered 4 | . 1 . 3 . . Indirectly . | . . . . . . Trap Hack Attempts . | . . . . . . Triggered . | . . . . . . Disarmed . | . . . . . . Reprogrammed . | . . . . . . Reused . | . . . . . . Traps Extracted . | . . . . . . Installed . | . . . . . . Triggered . | . . . . . . Machines | -11 -10 -10 -9 -8 -8 ---------- Run | Yrd Mat Min Mat Mat Gar Machines Disabled 6 | . 1 . . . 5 Max in Single Turn 1 | . 1 . . . 1 Machines Repaired . | . . . . . . Machines Dismantled . | . . . . . . Machines Sabotaged . | . . . . . . Overloaded Fab Kills . | . . . . . . Hacking | -11 -10 -10 -9 -8 -8 --------- Run | Yrd Mat Min Mat Mat Gar Machines Accessed 9 | . 2 . 3 2 2 Terminals 8 | . 2 . 3 1 2 Fabricators . | . . . . . . Repair Stations . | . . . . . . Recycling Units . | . . . . . . Scanalyzers . | . . . . . . Garrison Access 1 | . . . . 1 . Total Hacks 26 | . 8 . 12 3 3 Successful 13 | . 5 . 4 2 2 Failed 13 | . 3 . 8 1 1 Catastrophic 2 | . . . 1 1 . Database Lockouts . | . . . . . . Manual 19 | . 6 . 11 2 . Terminals 25 | . 8 . 12 2 3 Fabricators . | . . . . . . Repair Stations . | . . . . . . Recycling Units . | . . . . . . Scanalyzers . | . . . . . . Garrison Access 1 | . . . . 1 . Terminal Hacks 6 | . 2 . 2 . 2 Robot Analysis 2 | . 2 . . . . Open Door 1 | . . . . . 1 Emergency Access Points 1 | . . . . . 1 Recall Investigation 1 | . . . 1 . . Zone Layout 1 | . . . 1 . . Fabricator Hacks . | . . . . . . Repair Station Hacks . | . . . . . . Recycling Unit Hacks . | . . . . . . Scanalyzer . | . . . . . . Garrison Access Hacks 1 | . . . . 1 . Unlock Access 1 | . . . . 1 . Unauthorized Hacks 6 | . 3 . 2 1 . Terminals 6 | . 3 . 2 1 . Track 1 | . 1 . . . . Botnet 4 | . 1 . 2 1 . Operators 1 | . 1 . . . . Fabricators . | . . . . . . Repair Stations . | . . . . . . Recycling Units . | . . . . . . Scanalyzers . | . . . . . . Garrison Access . | . . . . . . Data Cores Recovered . | . . . . . . Used . | . . . . . . Hacking Detections 7 | . 2 . 3 1 1 Full Trace Events 1 | . 1 . . . . Feedback Events . | . . . . . . Feedback Blocked . | . . . . . . Robot Schematics Acquired . | . . . . . . Robots Built . | . . . . . . Authchips . | . . . . . . Time . | . . . . . . Total Robot Build Rating . | . . . . . . Part Schematics Acquired . | . . . . . . Parts Built . | . . . . . . Authchips . | . . . . . . Time . | . . . . . . Total Part Build Rating . | . . . . . . Parts Repaired . | . . . . . . Time . | . . . . . . Parts Recycled . | . . . . . . Recycled Matter . | . . . . . . Retrieved Matter . | . . . . . . Retrieved Components . | . . . . . . Parts Scanalyzed . | . . . . . . Part Schematics Acquired . | . . . . . . Parts Damaged . | . . . . . . Bothacking | -11 -10 -10 -9 -8 -8 ------------ Run | Yrd Mat Min Mat Mat Gar Used RIF Installer . | . . . . . . Robots Hacked . | . . . . . . Non-combat . | . . . . . . Combat . | . . . . . . Robot Hacks Applied . | . . . . . . Relay Couplers Released 4 | . . . . . 4 Programmers 4 | . . . . . 4 Fabnet Peak Effective % . | . . . . . . Robots Rewired . | . . . . . . Allies Hacked . | . . . . . . Hacks Repelled . | . . . . . . Allies | -11 -10 -10 -9 -8 -8 -------- Run | Yrd Mat Min Mat Mat Gar Total Allies 2 | . . 1 . . 1 Largest Group 1 | . . 1 . . 1 Highest-Rated Group 31 | . . 31 . . 31 Highest-Rated Ally 31 | . . 31 . . 31 Total Orders . | . . . . . . Ally Attacks 12 | . . 7 . . 5 Total Damage 186 | . . 102 . . 84 Kills 3 | . . 2 . . 1 Allies Corrupted . | . . . . . . Allies Melted 1 | . . 1 . . . Intel | -11 -10 -10 -9 -8 -8 ------- Run | Yrd Mat Min Mat Mat Gar Robot Analysis Total 2 | . 2 . . . . Derelict Logs Recovered . | . . . . . . Drone Launches . | . . . . . . Drone Recoveries . | . . . . . . Exploration | -11 -10 -10 -9 -8 -8 ------------- Run | Yrd Mat Min Mat Mat Gar Turns Passed 3787 | 115 722 443 880 167 1460 Spaces Moved 1765 | 75 344 258 312 97 679 Core 9 | 9 . . . . . Treads 1603 | . 257 258 312 97 679 Legs 153 | 66 87 . . . . Wheels . | . . . . . . Hover . | . . . . . . Flight . | . . . . . . Fastest Speed 50 | 50 120 160 160 160 160 Average Speed 156 | 114 149 160 160 160 160 Slowest Speed 160 | 150 160 160 160 160 160 Overloaded Moves . | . . . . . . Propulsion Burnouts . | . . . . . . Robots Hopped . | . . . . . . Cave-ins Triggered . | . . . . . . Exploration Rate (%) 37 | 5 59 39 29 15 78 Regions Visited 5 Branch Regions 1 Pre-discovered Areas . | . . . . . . Known Exits Taken 1 | . . . . 1 . Unknown Exits Taken 4 | 1 1 1 1 . . Scrap Searched 1 | . . 1 . . . Spaces Dug 1 | . . . 1 . . Terrain Destroyed 26 | . 14 9 1 . 2 Melee 1 | . . . 1 . . Projectile . | . . . . . . AOE 25 | . 14 9 . . 2 Terrain Rammed . | . . . . . . Walls Destroyed . | . . . . . . Machines Disabled . | . . . . . . Actions | -11 -10 -10 -9 -8 -8 --------- Run | Yrd Mat Min Mat Mat Gar Total 2471 | 95 515 276 611 110 864 Wait 441 | 7 138 3 243 . 50 Move 1760 | 74 343 257 311 96 679 Hop . | . . . . . . Pick Up 24 | 4 5 3 4 4 4 Fast Attach 13 | 7 2 . . 3 1 Attach 16 | . 1 1 3 2 9 Detach 2 | . . . . 1 1 Swap 37 | . 2 2 7 . 26 Drop 9 | . 2 2 1 4 . Fire 127 | 3 20 8 41 . 55 Melee 40 | . . . 1 . 39 Ram . | . . . . . . Kick 1 | . 1 . . . . Crush 1 | . 1 . . . . Escape Stasis . | . . . . . . Rewire . | . . . . . . Trap . | . . . . . . Miscellaneous . | . . . . . . Route ------- -11/Scrapyard -10/Materials (discovered 3 exits: *Mat / [*Min x2]) -10/Mines -9/Materials -8/Materials (discovered 2 exits: [*Sto] / Gar) -8/Garrison (discovered 2 exits: [*Mat x2]) History --------- Turn | Location | Event 16 | -11/Scrapyard | Discovered new exit (range 14) 116 | -11/Scrapyard | Entered Materials 333 | -10/Materials | Discovered new exit (range 13) 340 | -10/Materials | Build established: Mutant 395 | -10/Materials | Discovered new exit (range 16) 775 | -10/Materials | Discovered new exit (range 13) 838 | -10/Materials | Entered Mines 869 | -10/Mines | Met a Derelict bent on vengeance 1191 | -10/Mines | Met a Derelict testing a Signal Generator 1265 | -10/Mines | Discovered new exit (range 10) 1281 | -10/Mines | Entered Materials 1281 | -9/Materials | Evolved 2 slots: Utility x2 1969 | -9/Materials | Build established: Scavenger-Mutant 2126 | -9/Materials | Discovered new exit (range 16) 2161 | -9/Materials | Entered another Materials area 2161 | -8/Materials | Evolved 2 slots: Propulsion x1, Utility x1 2188 | -8/Materials | Discovered new exit (range 14) 2326 | -8/Materials | Identified exit to Garrison 2328 | -8/Materials | Entered Garrison 2406 | -8/Garrison | Destroyed 7 combat bots 2436 | -8/Garrison | Lost 3 parts (2n1u) 2446 | -8/Garrison | Triggered checkpoint 2625 | -8/Garrison | Triggered checkpoint 3082 | -8/Garrison | Triggered checkpoint 3085 | -8/Garrison | Triggered checkpoint 3150 | -8/Garrison | Triggered checkpoint 3396 | -8/Garrison | Triggered checkpoint 3440 | -8/Garrison | Discovered new exit (range 3) 3488 | -8/Garrison | Rescued a captive Derelict 3640 | -8/Garrison | Triggered checkpoint 3711 | -8/Garrison | Discovered new exit (range 11) 3758 | -8/Garrison | P-60 Hacker assimilated allied 94-P7G(g) 3783 | -8/Garrison | System corruption reached 10% 3788 | -8/Garrison | Self-destructed Last Messages --------------- 03758_ P-60 Hacker springs to life. 03758_ P-60 Hacker hacks 94-P7G(g), assimilated. 03760_ Destroyed Shock Rifle. 03760_ P-60 Hacker system corrupted by crushing effect. 03760_ 94-P7G(g) destroyed. 03761_ P-60 Hacker resets P-60 Hacker, system corruption cleaned. 03762_ Imp. Treads destroyed. 03764_ Hrd. Medium Armor Plating destroyed. 03765_ Autogun destroyed. 03767_ Machine disabled. 03768_ Lgt. Armor Plating destroyed. 03772_ Ion Engine destroyed. 03773_ Imp. Treads destroyed. 03774_ Lgt. Armor Plating destroyed. 03776_ Destroyed Mic. Nuclear Core. 03776_ P-60 Hacker system corrupted by crushing effect. 03776_ P-60 Hacker knocked back. 03782_ P-60 Hacker resets P-60 Hacker, system corruption cleaned. 03786_ Maul destroyed. 03787_ Lgt. Treads destroyed. Map ----- +----------------------------------------------------+ | ?????????????????? ????????????????????? | | ?????????????????? ????????????????????? | | ?????????????????? ????????????????????? | | ?????????????????? ????????????????????? | | ?????????????????? ?????????????????#### | | ?????????????????# #????????????????"""" | | ?????????????????# #??????????????### | | ?????????????????# #??????????????# | | ?????????????????# #??????????????##"### | | ?????????????????# #???????????????# #?? | | ?????????????????# #???????????????# #?? | | ?????????????????# #???????????????# #?# | | ?????????????????# #?#####???????###%### | | ?????????????????# ### #???????# ! " | | ?????????????????# / < #########"##### | | ?????????????????# ### #???# | | ?????????????????# #?# #???? | | ?????????????????# #?######+##### #???? | | ?????????????????# #????????????# ??? | | ?????????????????# #????????????# ###?+ | | ?????????????????# #????????????# #???? | | ?????????????????# #????????????# #???? | | ?????????+???????# #????????????# #???? | | ?????????????##### #####????????# #???? | | ???????+###+##p #????????+ +???? | | ??????# !p[@ #????????# #???? | | ???????+###+##p #????????# #???? | | ?????????????# " #????????# #???? | | ?????????+???#"" """ ?????# #???? | | ?????????????#" " #####????# #?##+ | | ?????????????#" #????????# | | ?????????????#" #????????# | | ?????????????#""""" #????????######## | | ?????????????#####"#####???????????????? | | ??????????????????"#???????????????????? | | ??????????????????##???????????????????? | | ???????????????????????????????????????? | | ???????????????????????????????????????? | | ???????????????????????????????????????? | | ???????????????????????????????????##### | | ????????????????????????????????? | | ????????????????????????????????? | | ??????????????????????????????????????## | | ???????????????????????????????????????? | | ???????????????????????????????????????? | | ???????????????????????????????????????? | | ???????????????????????????????????????? | | ???????????????????????????????????+???? | | ???????????????????????????????????????? | | ???????????????????????????????????????? | +----------------------------------------------------+ Best States ------------- Heat Dissipation 45 Energy Generation 12 Energy Capacity 265 Matter Stores 300 Matter Capacity 300 Sight Range 20 Terrain Scan Density 10 Armor Coverage 375 Evasion (%) 55 Recoil Reduction 3 Item Schematics ----------------- None Robot Schematics ------------------ None Fabricated ------------ Nothing Alien Tech Used ----------------- None Achievements -------------- None Challenges ------------ None Game ------ Seed CompositeMetaWarhead Manual? 0 Play Time 00:28:20 Cumulative 100.4 hours Start 2024.04.05 @ 09:15:25 End 2024.04.05 @ 09:43:02 Sessions 1 Manual Loads 0 Difficulty Rogue Special Mode None Game No. 113 Rogue 113 Adventurer 0 Explorer 0 Win Type - Total 0 Types 0/0/0/0/0/0/0/0/0 Lore% 46 Gallery% 46 Achievement% 37 Wizard Run 0 Options --------- Layout 0 ASCII 0 Keyboard 0 Movement Numpad Keybinds 0 Fullscreen 1 Font 18/SmallcapsGlow Map View 76x50 Zoom Use 0% Tactical HUD 1 Map Filters NONE Filters NONE Steam 1 RUN: fb79f89f-379c-4da8-a2e3-973c9043b495